fUST/lending_fUST_20260202
["ID","MTS","AMOUNT","RATE_DAILY","PERIOD"]
[404293631,1770040246991,-230.59055495,0.00037244,10]
[404293633,1770040247003,-2282.79749568,0.00038028,10]
[404293866,1770040324716,287.19324174,0.00039204,120]
[404293867,1770040792059,5000.0,0.00039206,49]
[404293868,1770040839097,446.85763899,0.00039206,30]
[404293900,1770041240471,-740.75809701,0.00028,3]
[404293901,1770041240492,-263.37326321,0.00028,7]
[404293902,1770041349130,-477.3848338,0.00028,7]
[404293903,1770041349150,-343.0904851,0.00028,3]
[404293905,1770041351181,-397.66761191,0.00028,3]
[404293906,1770041351200,-180.48880957,0.00031895,2]
[404293907,1770041351220,-203.0,0.00033998,2]
[404293908,1770041351239,-502.53505348,0.00033999,7]
[404293909,1770041351257,-500.0,0.00033999,7]
[404293910,1770041351277,-335.82750889,0.00033999,7]
[404293911,1770041351302,-500.0,0.00033999,7]
[404293912,1770041351321,-500.0,0.00033999,7]
[404293913,1770041351342,-500.0,0.00033999,7]
[404293914,1770041351363,-500.0,0.00033999,7]
[404293915,1770041351386,-300.0,0.00033999,7]
[404293916,1770041351405,-500.0,0.00033999,7]
[404293917,1770041351508,-500.0,0.00033999,7]
[404293918,1770041351529,-500.0,0.00033999,7]
[404293919,1770041351549,-500.0,0.00033999,7]
[404293920,1770041351570,-500.0,0.00033999,7]
[404293921,1770041351590,-500.0,0.00033999,7]
[404293922,1770041351610,-500.0,0.00033999,7]
[404293923,1770041351630,-500.0,0.00033999,7]
[404293924,1770041351649,-500.0,0.00033999,7]
[404293925,1770041351668,-211.16378617,0.00033999,7]
[404293926,1770041351688,-500.0,0.00033999,7]
[404293927,1770041351708,-500.0,0.00033999,7]
[404293928,1770041351727,-500.0,0.00033999,7]
[404293929,1770041351747,-500.0,0.00033999,7]
[404293930,1770041351766,-500.0,0.00033999,7]
[404293931,1770041351785,-500.0,0.00033999,7]
[404293932,1770041351806,-500.0,0.00033999,7]
[404293933,1770041351827,-500.0,0.00033999,7]
[404293934,1770041351847,-500.0,0.00033999,7]
[404293935,1770041351867,-500.0,0.00033999,7]
[404293936,1770041351886,-500.0,0.00033999,7]
[404293937,1770041351906,-500.0,0.00033999,7]
[404293938,1770041351926,-500.0,0.00033999,7]
[404293939,1770041351946,-500.0,0.00033999,7]
[404293940,1770041351966,-500.0,0.00033999,7]
[404293941,1770041351985,-500.0,0.00033999,7]
[404293942,1770041352005,-500.0,0.00033999,7]
[404293943,1770041352024,-500.0,0.00033999,7]
[404293944,1770041352042,-500.0,0.00033999,7]
[404293945,1770041352063,-504.77484225,0.00033999,7]
[404293946,1770041352082,-500.0,0.00033999,7]
[404293947,1770041352102,-500.0,0.00033999,7]
[404293948,1770041352123,-500.0,0.00033999,7]
[404293949,1770041352142,-500.0,0.00033999,7]
[404293950,1770041352161,-500.0,0.00033999,7]
[404293951,1770041352180,-500.0,0.00033999,7]
[404293952,1770041352198,-500.0,0.00033999,7]
[404293953,1770041352218,-500.0,0.00033999,7]
[404293954,1770041352237,-500.0,0.00033999,7]
[404293955,1770041352255,-500.0,0.00033999,7]
[404293956,1770041352275,-500.0,0.00033999,7]
[404293957,1770041352299,-500.0,0.00033999,7]
[404293958,1770041352317,-500.0,0.00033999,7]
[404293959,1770041352338,-250.0,0.00033999,7]
[404293960,1770041352358,-740.75809701,0.00033999,7]
[404293961,1770041352377,-3006.39964088,0.00034,2]
[404293963,1770041373098,-12997.11154089,0.00034,2]
[404293988,1770041431541,-1211.42354415,0.00034,2]
[404293989,1770041431554,-717.47312488,0.00034,2]
[404293990,1770041431566,-1123.02642622,0.00034,2]
[404293991,1770041431578,-739.2503839,0.00034,2]
[404293992,1770041431589,-263.64359896,0.00034273,2]
[404294020,1770041437725,-77.77781204,0.00034273,2]
[404294022,1770041437734,-354.98477678,0.000349,2]
[404294024,1770041437744,-5610.19642764,0.0003499,2]
[404294026,1770041437753,-445.99,0.0003499,3]
[404294027,1770041437762,-395.65,0.0003499,3]
[404294028,1770041437772,-197.82,0.0003499,3]
[404294029,1770041437781,-593.51,0.0003499,3]
[404294030,1770041437790,-11296.16,0.0003499,10]
[404294031,1770041437800,-168.58310402,0.00034999,7]
[404294032,1770041437809,-500.0,0.00034999,7]
[404294033,1770041437818,-500.0,0.00034999,7]
[404294034,1770041437828,-221.64673539,0.00034999,7]
[404294035,1770041437839,-4733.18988163,0.00035,2]
[404294036,1770041437849,-16753.16564218,0.00035,2]
[404294037,1770041437862,-639.58936963,0.00035,2]
[404294038,1770041437874,-6177.99002886,0.00035,2]
[404294039,1770041437886,-5651.93568319,0.00035,2]
[404294040,1770041437898,-821.20746937,0.00035,2]
[404294041,1770041437910,-783.06,0.00035,2]
[404294069,1770041439954,-1160.27894698,0.00035,2]
[404294583,1770041445460,-45.59239034,0.00035,2]
[404294585,1770041445472,-9682.28697647,0.00035,2]
[404294637,1770041445960,-899.02450081,0.00035,2]
[404294644,1770041446023,-3721.85335174,0.00035,2]
[404294647,1770041446035,-944.68181726,0.00035,2]
[404295130,1770041498369,171.514878,0.00039206,120]
[404295131,1770041514990,1000.0,0.00039206,30]
[404295154,1770042107051,627876.0,0.00039207,30]
[404295164,1770042316797,1123377.96515647,0.00039207,30]
[404295170,1770042430130,-194.76283786,0.0003,2]
[404295171,1770042430150,-144.37275504,0.00033627,2]
[404295172,1770042436101,-544.27252684,0.00033627,2]
[404295209,1770042479869,1000.0,0.00039207,30]
[404295216,1770042556240,-100000.0,0.0003,3]
[404295217,1770042556260,-1955.55068972,0.00033627,2]
[404295218,1770042556280,-215.34,0.000349,2]
[404295219,1770042556298,-391.95234793,0.000349,2]
[404295220,1770042556318,-500.0,0.00034989,120]
[404295221,1770042556337,-500.0,0.00034989,120]
[404295222,1770042556361,-500.0,0.00034989,7]
[404295223,1770042556381,-631.86215522,0.00034989,7]
[404295224,1770042556401,-500.0,0.00034989,7]
[404295225,1770042556422,-491.50423376,0.00034989,7]
[404295226,1770042556441,-241.02877259,0.00034989,7]
[404295227,1770042556462,-500.0,0.00034989,7]
[404295228,1770042556482,-500.0,0.00034989,7]
[404295229,1770042556503,-325.47748422,0.00034989,7]
[404295230,1770042556523,-500.0,0.00034989,7]
[404295231,1770042556543,-500.0,0.00034989,120]
[404295232,1770042556564,-174.706,0.0003499,40]
[404295233,1770042556585,-298.79314132,0.0003499,2]
[404295234,1770042579097,1887.0,0.00018082,2]
[404295235,1770042580199,1297.52393455,0.0003,10]
[404295236,1770042580220,3103.61786,0.0003,10]
[404295256,1770042631906,-6501.295926,0.000299,2]
[404295257,1770042631917,-9413.46,0.0002999,10]
[404295259,1770042631929,-7844.55,0.0002999,10]
[404295261,1770042631942,-6537.13,0.0002999,10]
[404295263,1770042631954,-5447.61,0.0002999,10]
[404295266,1770042631968,-2895.76,0.0003,2]
[404295268,1770042631985,-91556.00989546,0.0003,10]
[404295280,1770042637954,-1515.88609225,0.0003,10]
[404295282,1770042637968,-3392.4598424,0.0003,10]
[404295302,1770042639977,-395.72,0.0003,10]
[404295359,1770042640501,-6178.73455076,0.0003,10]
[404295834,1770042645359,-4539.67,0.0002999,10]
[404295835,1770042645372,-5474.9876,0.0003,10]
[404295836,1770042645384,-828.82,0.0003,10]
[404295857,1770042646058,-1654.29364488,0.0003,10]
[404295858,1770042666836,500.0,0.00013273,2]
[404295859,1770042671099,500.0,0.00013273,2]
[404295860,1770042671448,500.0,0.00013273,2]
[404295861,1770042674614,500.0,0.00013273,2]
[404295862,1770042675273,500.88785413,0.00013273,2]
[404295863,1770042708211,622.444971,0.00039207,120]
[404295864,1770042708561,622.444971,0.00039207,120]
[404295865,1770042709442,622.444971,0.00039207,120]
[404295866,1770042709958,622.444971,0.00039207,120]
[404295867,1770042710336,622.444971,0.00039207,120]
[404295868,1770042710970,622.444971,0.00039207,120]
[404295869,1770042711311,622.444971,0.00039207,120]
[404295870,1770042711616,622.444971,0.00039207,120]
[404295871,1770042712899,622.444971,0.00039207,120]
[404295872,1770042713312,622.444971,0.00039207,120]
[404295873,1770042713613,622.444971,0.00039207,120]
[404295874,1770042714555,622.444971,0.00039207,120]
[404295875,1770042715484,622.444971,0.00039207,120]
[404295876,1770042715972,622.444971,0.00039207,120]
[404295877,1770042716810,622.444971,0.00039207,120]
[404295878,1770042717636,622.444971,0.00039207,120]
[404295879,1770042718091,622.444971,0.00039207,120]
[404295880,1770042718660,622.444971,0.00039207,120]
[404295881,1770042719422,622.444971,0.00039207,120]
[404295882,1770042719914,622.444967,0.00039207,120]
[404295883,1770042731864,500.0,0.00013273,2]
[404295887,1770042784537,432.31807206,0.00013273,2]
[404295888,1770042786346,155.561262,0.00039207,120]
[404295889,1770042796410,500.0,0.00013699,2]
[404295890,1770042796460,1000.0,0.00014247,2]
[404295891,1770042796507,865.78800948,0.00014795,2]
[404295892,1770042798248,500.0,0.00013273,2]
[404295893,1770042798297,1000.0,0.00013821,2]
[404295894,1770042798751,300.0,0.00013673,2]
[404295895,1770042799019,177.78264906,0.00013699,2]
[404295896,1770042799115,693.63223956,0.00014221,2]
[404295897,1770042807993,190.947704,0.00039207,120]
[404295898,1770042808636,190.947704,0.00039207,120]
[404295899,1770042809333,190.947704,0.00039207,120]
[404295900,1770042810360,190.947704,0.00039207,120]
[404295901,1770042810565,260.826368,0.000274,120]
[404295902,1770042810844,190.947704,0.00039207,120]
[404295903,1770042811274,190.947704,0.00039207,120]
[404295904,1770042811978,190.947704,0.00039207,120]
[404295905,1770042812541,190.947704,0.00039207,120]
[404295906,1770042813063,190.947704,0.00039207,120]
[404295907,1770042813620,190.947704,0.00039207,120]
[404295908,1770042814093,190.947704,0.00039207,120]
[404295909,1770042814918,190.947704,0.00039207,120]
[404295910,1770042815583,190.947704,0.00039207,120]
[404295911,1770042816276,190.947704,0.00039207,120]
[404295912,1770042816740,190.947704,0.00039207,120]
[404295913,1770042817118,151.0,0.00039207,120]
[404295914,1770042817247,190.947704,0.00039207,120]
[404295915,1770042817458,151.0,0.00039207,120]
[404295916,1770042818038,190.947704,0.00039207,120]
[404295917,1770042818085,151.0,0.00039207,120]
[404295918,1770042818539,190.947704,0.00039207,120]
[404295919,1770042819100,190.947704,0.00039207,120]
[404295920,1770042819256,151.0,0.00039207,120]
[404295921,1770042819635,190.947704,0.00039207,120]
[404295922,1770042819864,151.0,0.00039207,120]
[404295923,1770042820706,151.0,0.00039207,120]
[404295924,1770042821554,151.0,0.00039207,120]
[404295925,1770042822170,151.0,0.00039207,120]
[404295926,1770042822665,151.0,0.00039207,120]
[404295927,1770042823527,151.0,0.00039207,120]
[404295928,1770042824085,151.0,0.00039207,120]
[404295929,1770042824394,151.0,0.00039207,120]
[404295930,1770042824824,151.0,0.00039207,120]
[404295931,1770042825148,151.0,0.00039207,120]
[404295932,1770042825457,208.711625,0.00039207,120]
[404295936,1770042843838,500.0,0.00013273,2]
[404295937,1770042854150,151.0,0.00039207,120]
[404295938,1770042854500,151.292201,0.00039207,120]
[404295939,1770042903804,218.60640123,0.00013273,2]
[404295940,1770042903983,500.0,0.00013273,2]
[404295941,1770042906498,500.0,0.00013273,2]
[404295962,1770042931205,3315.0,0.00030137,120]
[404295979,1770042948042,151.0,0.00038926,120]
[404295980,1770042948436,151.0,0.00038926,120]
[404295981,1770042948799,151.0,0.00038926,120]
[404295982,1770042949211,151.0,0.00038926,120]
[404295983,1770042950102,151.0,0.00038926,120]
[404295984,1770042950360,151.0,0.00038926,120]
[404295985,1770042950727,241.049801,0.00038926,120]
[404295986,1770042952510,162.253299,0.00038926,120]
[404295987,1770042953061,162.253299,0.00038926,120]
[404295988,1770042953413,162.253299,0.00038926,120]
[404295989,1770042953719,162.253299,0.00038926,120]
[404295990,1770042954062,162.253299,0.00038926,120]
[404295991,1770042954432,162.253299,0.00038926,120]
[404295992,1770042954811,162.253299,0.00038926,120]
[404295993,1770042955112,162.253299,0.00038926,120]
[404295994,1770042955410,162.253299,0.00038926,120]
[404295995,1770042955743,162.253299,0.00038926,120]
[404295996,1770042956068,162.253299,0.00038926,120]
[404295997,1770042956486,162.253299,0.00038926,120]
[404295998,1770042957144,162.253299,0.00038926,120]
[404295999,1770042957450,162.253299,0.00038926,120]
[404296000,1770042957804,162.253299,0.00038926,120]
[404296001,1770042958198,162.253299,0.00038926,120]
[404296002,1770042958852,162.253299,0.00038926,120]
[404296003,1770042959305,162.253299,0.00038926,120]
[404296004,1770042960159,162.253299,0.00038926,120]
[404296005,1770042960439,162.253295,0.00038926,120]
[404296006,1770042968274,500.0,0.00013273,2]
[404296007,1770042976756,151.0,0.00038926,120]
[404296009,1770042977156,151.0,0.00038926,120]
[404296010,1770042977746,151.0,0.00038926,120]
[404296011,1770042978080,151.0,0.00038926,120]
[404296012,1770042978602,151.0,0.00038926,120]
[404296013,1770042979027,151.0,0.00038926,120]
[404296014,1770042979459,151.0,0.00038926,120]
[404296015,1770042979774,151.0,0.00038926,120]
[404296016,1770042980210,151.0,0.00038926,120]
[404296017,1770042980944,151.0,0.00038926,120]
[404296018,1770042981691,151.0,0.00038926,120]
[404296019,1770042982764,151.0,0.00038926,120]
[404296020,1770042983212,151.0,0.00038926,120]
[404296021,1770042983638,151.0,0.00038926,120]
[404296022,1770042984162,151.0,0.00038926,120]
[404296023,1770042984491,186.053276,0.00038926,120]
[404296029,1770043024059,179.66410216,0.00013273,2]
[404296030,1770043024568,500.0,0.00013273,2]
[404296031,1770043024762,623.39633756,0.00013273,2]
[404296032,1770043025002,500.0,0.00013273,2]
[404296033,1770043025498,500.0,0.00013273,2]
[404296035,1770043080699,151.26,9.99e-05,2]
[404296036,1770043081009,151.26,9.99e-05,2]
[404296037,1770043083894,500.83502249,0.00013273,2]
[404296039,1770043143955,195.24819032,0.00013273,2]
[404296040,1770043143980,304.75180968,0.00013273,2]
[404296041,1770043144009,317.35125735,0.00013273,2]
[404296042,1770043145954,500.0,0.00013273,2]
[404296049,1770043280475,334.94188757,0.00029988,120]
[404296054,1770043325273,152.71023469,0.00013273,2]
[404296058,1770043384643,500.0,0.00013273,2]
[404296082,1770043488231,500.0,0.00029988,120]
[404296171,1770043554117,-629.93934409,0.00028,3]
[404296174,1770043625114,-698.47956876,0.00024953,2]
[404296175,1770043638146,-508.1024498,0.00024953,2]
[404296176,1770043652101,-1792.02933668,0.00024703,2]
[404296177,1770043652123,-259.41002502,0.00024953,2]
[404296234,1770043744733,432.31807206,0.00013273,2]
[404296235,1770043748132,-3534.00795642,0.00024953,2]
[404296236,1770043748157,-150.0,0.0002589,2]
[404296237,1770043748178,-110.81875292,0.00028,3]
[404296238,1770043748199,-740.75809701,0.00028,7]
[404296239,1770043748218,-740.75809701,0.00028,3]
[404296240,1770043748240,-1200.0,0.00028719,2]
[404296241,1770043748261,-300.0,0.00029009,2]
[404296242,1770043748283,-300.0,0.00029009,2]
[404296243,1770043748304,-150.0,0.00029624,2]
[404296244,1770043748325,-150.74760261,0.00029624,2]
[404296245,1770043748346,-500.0,0.00029624,2]
[404296246,1770043748366,-500.0,0.00029624,2]
[404296247,1770043748391,-500.0,0.00029624,2]
[404296248,1770043748413,-500.0,0.00029624,2]
[404296249,1770043748434,-500.0,0.00029624,2]
[404296250,1770043748456,-150.0,0.00029624,2]
[404296251,1770043748478,-191.77684451,0.00029624,2]
[404296252,1770043748498,-500.0,0.00029624,2]
[404296253,1770043748517,-250.34228489,0.00029624,2]
[404296254,1770043748538,-500.0,0.00029625,2]
[404296255,1770043748558,-150.0,0.00029625,2]
[404296256,1770043748580,-150.0,0.00029761,2]
[404296257,1770043748601,-500.0,0.00029761,2]
[404296258,1770043748621,-500.0,0.00029761,2]
[404296259,1770043748641,-500.0,0.00029761,2]
[404296260,1770043748665,-500.0,0.00029761,2]
[404296261,1770043748686,-500.0,0.00029761,2]
[404296262,1770043748792,-150.0,0.00029761,2]
[404296263,1770043748814,-500.0,0.00029761,2]
[404296264,1770043748836,-500.0,0.00029762,2]
[404296265,1770043748858,-150.0,0.00029762,2]
[404296266,1770043748880,-500.0,0.00029889,2]
[404296267,1770043748904,-500.0,0.00029889,2]
[404296268,1770043748926,-500.0,0.00029889,2]
[404296269,1770043748947,-500.0,0.00029889,2]
[404296270,1770043748969,-500.0,0.00029889,2]
[404296271,1770043748991,-500.0,0.00029889,2]
[404296272,1770043749012,-500.0,0.00029889,2]
[404296273,1770043749034,-500.0,0.00029889,2]
[404296274,1770043749059,-500.0,0.00029889,2]
[404296275,1770043749080,-500.0,0.00029889,2]
[404296276,1770043749102,-500.0,0.00029889,2]
[404296277,1770043749125,-500.0,0.00029889,2]
[404296278,1770043749150,-500.0,0.00029889,2]
[404296279,1770043749173,-500.0,0.00029889,2]
[404296280,1770043749212,-500.0,0.00029889,2]
[404296281,1770043749235,-550.53095611,0.00029889,2]
[404296282,1770043749259,-500.0,0.00029889,2]
[404296283,1770043749284,-500.0,0.00029889,2]
[404296284,1770043749307,-500.0,0.00029889,2]
[404296285,1770043749330,-476.88839025,0.00029889,2]
[404296286,1770043749352,-500.0,0.00029889,2]
[404296287,1770043749374,-244.31958949,0.00029889,2]
[404296288,1770043749398,-414.97045839,0.00029889,2]
[404296289,1770043749424,-500.0,0.00029889,2]
[404296290,1770043749447,-500.0,0.00029889,2]
[404296291,1770043749470,-500.0,0.00029889,2]
[404296292,1770043749491,-500.0,0.00029889,2]
[404296293,1770043749512,-500.0,0.00029889,2]
[404296294,1770043749533,-500.0,0.00029889,2]
[404296295,1770043749555,-500.0,0.00029889,2]
[404296296,1770043749577,-500.0,0.00029889,2]
[404296297,1770043749598,-500.0,0.00029889,2]
[404296298,1770043749619,-500.0,0.00029889,2]
[404296299,1770043749639,-500.0,0.00029889,2]
[404296300,1770043749663,-500.0,0.00029889,2]
[404296301,1770043749684,-500.0,0.00029889,2]
[404296302,1770043749706,-500.0,0.00029889,2]
[404296303,1770043749728,-500.0,0.00029889,2]
[404296304,1770043749750,-500.0,0.00029889,2]
[404296305,1770043749771,-500.0,0.00029889,2]
[404296306,1770043749792,-512.81596415,0.00029889,2]
[404296307,1770043749813,-500.0,0.00029889,2]
[404296308,1770043749835,-500.0,0.00029889,2]
[404296309,1770043749856,-500.0,0.00029889,2]
[404296310,1770043749878,-500.0,0.00029889,2]
[404296311,1770043749902,-500.0,0.00029889,2]
[404296312,1770043749928,-500.0,0.00029889,2]
[404296313,1770043749951,-500.0,0.00029889,2]
[404296314,1770043749971,-500.0,0.00029889,2]
[404296315,1770043749994,-500.0,0.00029889,2]
[404296316,1770043750014,-500.0,0.00029889,2]
[404296317,1770043750034,-500.0,0.00029889,2]
[404296318,1770043750059,-500.0,0.00029889,2]
[404296319,1770043750080,-500.0,0.00029889,2]
[404296320,1770043750102,-500.0,0.00029889,2]
[404296321,1770043750123,-500.0,0.00029889,2]
[404296322,1770043750143,-500.0,0.00029889,2]
[404296323,1770043750166,-500.0,0.00029889,2]
[404296324,1770043750188,-500.0,0.00029889,2]
[404296325,1770043750208,-500.0,0.00029889,2]
[404296326,1770043750229,-500.0,0.00029889,2]
[404296327,1770043750249,-500.0,0.00029889,2]
[404296328,1770043750269,-500.0,0.00029889,2]
[404296329,1770043750289,-500.0,0.00029889,2]
[404296330,1770043750311,-500.0,0.00029889,2]
[404296331,1770043750331,-500.0,0.00029889,2]
[404296332,1770043750352,-500.0,0.00029889,2]
[404296333,1770043750373,-500.0,0.00029889,2]
[404296334,1770043750394,-500.0,0.00029889,2]
[404296335,1770043750419,-400.0,0.00029889,2]
[404296336,1770043750444,-500.0,0.00029889,2]
[404296337,1770043750464,-507.03463845,0.0002989,2]
[404296338,1770043750484,-507.03463845,0.00029893,2]
[404296339,1770043750504,-507.03463845,0.00029895,2]
[404296340,1770043750523,-500.0,0.00029895,2]
[404296341,1770043750542,-268.15783911,0.00029895,2]
[404296342,1770043750560,-171.01491555,0.00029895,2]
[404296343,1770043750660,-561.44371325,0.00029895,2]
[404296344,1770043750684,-507.03463845,0.00029898,2]
[404296345,1770043750706,-150.0,0.00029898,2]
[404296346,1770043750726,-450.0,0.00029898,2]
[404296347,1770043750752,-504.86005865,0.00029898,2]
[404296348,1770043750781,-500.0,0.00029898,2]
[404296349,1770043750802,-179.18771054,0.00029898,2]
[404296350,1770043750822,-202.64390228,0.00029898,2]
[404296351,1770043750842,-150.0,0.00029898,2]
[404296352,1770043750862,-500.0,0.00029898,2]
[404296353,1770043750882,-500.0,0.00029899,2]
[404296354,1770043750909,-500.0,0.00029899,2]
[404296355,1770043750930,-150.0,0.00029899,2]
[404296356,1770043750950,-507.03463845,0.000299,2]
[404296357,1770043750971,-3783.06,0.0002998,10]
[404296358,1770043750992,-346.48,0.0002999,3]
[404296359,1770043751013,-173.24,0.0002999,3]
[404296360,1770043751036,-519.76,0.0002999,3]
[404296361,1770043751060,-163.270223,0.0002999,7]
[404296362,1770043751081,-23144.68137386,0.0002999,2]
[404296363,1770043751163,-15062.29345074,0.0002999,2]
[404296364,1770043751183,-5983.69966175,0.0002999,2]
[404296365,1770043751210,-2233.29212255,0.0002999,2]
[404296366,1770043770182,-5000.0,0.00024953,2]
[404296367,1770043770208,-3152.55,0.0002999,10]
[404296368,1770043770233,-173.24,0.0002999,3]
[404296369,1770043770257,-2627.12,0.0002999,10]
[404296370,1770043770281,-4090.1003159,0.0002999,2]
[404296371,1770043770307,-151.0,0.0002999,7]
[404296372,1770043770331,-151.0,0.0002999,7]
[404296373,1770043770355,-151.0,0.0002999,7]
[404296374,1770043770378,-151.0,0.0002999,7]
[404296375,1770043770400,-151.0,0.0002999,7]
[404296376,1770043770427,-168.475835,0.0002999,7]
[404296377,1770043770449,-1431.73640774,0.0003,10]
[404296400,1770043831913,-1200.72634701,0.00024953,2]
[404296429,1770043837965,-2935.96269571,0.00024953,2]
[404296430,1770043839464,-357.66978425,0.00024953,2]
[404296447,1770043840289,-505.64117303,0.00024953,2]
[404296450,1770043840299,-322.0,0.00026848,2]
[404296451,1770043840309,-300.0,0.00029989,2]
[404296453,1770043840318,-519.72,0.0002999,3]
[404296455,1770043840327,-2189.27,0.0002999,10]
[404296457,1770043840336,-500.0,0.00029999,2]
[404296459,1770043840345,-187.71048737,0.00029999,2]
[404296461,1770043840355,-243.01059928,0.00029999,2]
[404296464,1770043840364,-497.43204336,0.00029999,2]
[404296466,1770043840373,-172.28121735,0.00029999,2]
[404296468,1770043840382,-268.33005093,0.00029999,2]
[404296470,1770043840391,-500.0,0.00029999,2]
[404296472,1770043840400,-249.36884328,0.00029999,2]
[404296474,1770043840408,-541.28159641,0.00029999,2]
[404296476,1770043840417,-500.0,0.00029999,2]
[404296478,1770043840428,-500.0,0.00029999,2]
[404296480,1770043840443,-500.0,0.00029999,2]
[404296482,1770043840451,-500.0,0.00029999,2]
[404296484,1770043840460,-22385.07801536,0.0003,10]
[404296486,1770043840477,-2050.07953336,0.0003,10]
[404297034,1770043845974,-1546.0690336,0.0003,10]
[404297036,1770043846434,-1824.39,0.0002999,10]
[404297037,1770043846444,-17825.61,0.0003,10]
[404297038,1770043846455,-1031.0,0.0003,10]
[404297053,1770043850591,529.65,0.00029897,120]
[404297055,1770043863265,500.0,0.00029988,120]
[404297056,1770043873396,-5000.0,0.00024953,2]
[404297058,1770043876923,500.0,0.00029895,120]
[404297059,1770043877174,229.04,0.00029895,120]
[404297071,1770043955987,249.206494,0.00038926,120]
[404297072,1770043956307,249.206494,0.00038926,120]
[404297073,1770043956623,249.206494,0.00038926,120]
[404297074,1770043956939,249.206494,0.00038926,120]
[404297075,1770043957225,249.206494,0.00038926,120]
[404297076,1770043957535,249.206494,0.00038926,120]
[404297077,1770043957846,249.206494,0.00038926,120]
[404297078,1770043958156,249.206494,0.00038926,120]
[404297079,1770043958442,249.206494,0.00038926,120]
[404297080,1770043958788,249.206494,0.00038926,120]
[404297081,1770043958871,151.0,0.00038926,120]
[404297082,1770043959096,249.206494,0.00038926,120]
[404297083,1770043959414,249.206494,0.00038926,120]
[404297084,1770043959456,151.0,0.00038926,120]
[404297085,1770043959713,249.206494,0.00038926,120]
[404297086,1770043959817,151.0,0.00038926,120]
[404297087,1770043960144,261.846698,0.00038926,120]
[404297088,1770043960348,249.206494,0.00038926,120]
[404297089,1770043960671,249.206494,0.00038926,120]
[404297090,1770043960983,249.206494,0.00038926,120]
[404297091,1770043961299,249.206494,0.00038926,120]
[404297092,1770043961596,249.206494,0.00038926,120]
[404297093,1770043961922,249.206494,0.00038926,120]
[404297094,1770043962237,249.206504,0.00038926,120]
[404297095,1770043972873,151.0,0.00038926,120]
[404297096,1770043972900,-397.51124589,0.00024703,2]
[404297097,1770043973195,154.310197,0.00038926,120]
[404297098,1770043983774,542.05501309,0.00013699,2]
[404297099,1770043992330,151.0,0.00038926,120]
[404297100,1770043992624,154.656667,0.00038926,120]
[404297101,1770043995079,151.0,0.00038926,120]
[404297102,1770043995684,151.0,0.00038926,120]
[404297103,1770043995979,151.0,0.00038926,120]
[404297104,1770043996270,151.0,0.00038926,120]
[404297105,1770043996576,151.0,0.00038926,120]
[404297106,1770043996881,151.0,0.00038926,120]
[404297107,1770044002525,151.0,0.00038926,120]
[404297108,1770044003897,151.0,0.00038926,120]
[404297109,1770044004625,151.0,0.00038926,120]